[Event "Championnat d'Europe de Blitz"]
[Date "2024.12.09"]
[White "Safarli, Eltaj"]
[Black "Pancevski, Filip"]
[WhiteElo "2610"]
[BlackElo "2420"]
[Round "12.8"]
[Result "1-0"]
[TimeControl "180+2"]

1. e4 {[%emt 00:16:01] [%clk 00:03:03]} d6 {[%clk 00:03:04]} 2. d4 {[%clk
00:03:03]} Nf6 {[%clk 00:03:05]} 3. Nc3 {[%emt 00:00:02] [%clk 00:03:04]} e5
{[%clk 00:03:06]} 4. Nf3 {[%emt 00:00:02] [%clk 00:03:04]} Nbd7 {[%emt 00:00:01]
[%clk 00:03:08]} 5. Bc4 {[%emt 00:00:09] [%clk 00:02:57]} Be7 {[%clk 00:03:09]}
6. a4 {[%emt 00:00:04] [%clk 00:02:55]} O-O {[%emt 00:00:02] [%clk 00:03:09]} 7.
O-O {[%emt 00:00:02] [%clk 00:02:55]} c6 {[%emt 00:00:01] [%clk 00:03:10]} 8. a5
{[%emt 00:00:06] [%clk 00:02:51]} h6 {[%emt 00:00:03] [%clk 00:03:09]} 9. h3
{[%emt 00:00:15] [%clk 00:02:38]} Qc7 {[%emt 00:00:10] [%clk 00:03:01]} 10. Be3
{[%emt 00:00:07] [%clk 00:02:33]} Re8 {[%emt 00:00:03] [%clk 00:03:00]} 11. d5
{[%emt 00:00:11] [%clk 00:02:24]} Nf8 {[%emt 00:00:20] [%clk 00:02:42]} 12. Bb3
{[%emt 00:00:06] [%clk 00:02:21]} Bd7 {[%emt 00:00:18] [%clk 00:02:26]} 13. Qd3
{[%emt 00:00:21] [%clk 00:02:01]} c5 {[%emt 00:00:43] [%clk 00:01:45]} 14. Nd2
{[%emt 00:00:10] [%clk 00:01:54]} Ng6 {[%emt 00:00:20] [%clk 00:01:27]} 15. Nc4
{[%emt 00:00:04] [%clk 00:01:51]} Rf8 {[%emt 00:00:06] [%clk 00:01:23]} 16. Ba4
{[%emt 00:00:04] [%clk 00:01:50]} Bc8 {[%emt 00:00:01] [%clk 00:01:24]} 17. Nb5
{[%emt 00:00:15] [%clk 00:01:37]} Qd8 {[%emt 00:00:20] [%clk 00:01:06]} 18. a6
{[%emt 00:00:14] [%clk 00:01:25]} b6 {[%emt 00:00:14] [%clk 00:00:54]} 19. Nc3
{[%emt 00:00:03] [%clk 00:01:23]} Bd7 {[%emt 00:00:24] [%clk 00:00:32]} 20. Bc6
{[%emt 00:00:01] [%clk 00:01:24]} Rc8 {[%emt 00:00:05] [%clk 00:00:29]} 21. Nb5
{[%emt 00:00:11] [%clk 00:01:16]} Rxc6 {[%clk 00:00:30]} 22. dxc6 {[%emt
00:00:03] [%clk 00:01:14]} Bxc6 {[%emt 00:00:01] [%clk 00:00:31]} 23. Ncxd6
{[%emt 00:00:13] [%clk 00:01:03]} Qb8 {[%emt 00:00:09] [%clk 00:00:25]} 24. Nf5
{[%emt 00:00:11] [%clk 00:00:53]} Bxe4 {[%emt 00:00:10] [%clk 00:00:17]} 25.
Nxe7+ {[%clk 00:00:54]} Nxe7 {[%emt 00:00:01] [%clk 00:00:19]} 26. Qd6 {[%clk
00:00:55]} Nc6 {[%emt 00:00:04] [%clk 00:00:17]} 27. Qxb8 {[%emt 00:00:04] [%clk
00:00:54]} Rxb8 {[%emt 00:00:01] [%clk 00:00:18]} 28. Rac1 {[%emt 00:00:13]
[%clk 00:00:42]} Bd5 {[%emt 00:00:03] [%clk 00:00:17]} 29. Rfd1 {[%emt 00:00:04]
[%clk 00:00:40]} Bc4 {[%emt 00:00:01] [%clk 00:00:18]} 30. Nd6 {[%emt 00:00:04]
[%clk 00:00:39]} Bxa6 {[%emt 00:00:01] [%clk 00:00:18]} 31. Ra1 {[%clk
00:00:41]} Be2 {[%emt 00:00:07] [%clk 00:00:13]} 32. Rd2 {[%emt 00:00:01] [%clk
00:00:41]} Bh5 {[%emt 00:00:01] [%clk 00:00:13]} 33. Nb5 {[%clk 00:00:43]} a5
{[%emt 00:00:04] [%clk 00:00:12]} 34. c3 {[%emt 00:00:04] [%clk 00:00:40]} Ne8
{[%emt 00:00:08] [%clk 00:00:06]} 35. f3 {[%emt 00:00:07] [%clk 00:00:36]} Bg6
{[%emt 00:00:01] [%clk 00:00:06]} 36. Rad1 {[%emt 00:00:01] [%clk 00:00:37]} Kf8
{[%emt 00:00:03] [%clk 00:00:06]} 37. Rd7 {[%emt 00:00:02] [%clk 00:00:36]} Bf5
{[%emt 00:00:03] [%clk 00:00:05]} 38. R7d2 {[%emt 00:00:01] [%clk 00:00:37]} Be6
{[%emt 00:00:01] [%clk 00:00:06]} 39. g4 {[%emt 00:00:13] [%clk 00:00:26]} f6
{[%emt 00:00:01] [%clk 00:00:07]} 40. Kf2 {[%emt 00:00:01] [%clk 00:00:28]} a4
{[%emt 00:00:01] [%clk 00:00:08]} 41. h4 {[%emt 00:00:02] [%clk 00:00:27]} Ra8
{[%emt 00:00:03] [%clk 00:00:07]} 42. Na3 {[%emt 00:00:04] [%clk 00:00:26]} Na5
{[%emt 00:00:01] [%clk 00:00:08]} 43. Rd8 {[%emt 00:00:01] [%clk 00:00:26]} Ra7
{[%clk 00:00:09]} 44. Rb8 {[%emt 00:00:02] [%clk 00:00:26]} Rb7 {[%emt 00:00:03]
[%clk 00:00:09]} 45. Rdd8 {[%emt 00:00:03] [%clk 00:00:24]} Rxb8 {[%emt
00:00:02] [%clk 00:00:09]} 46. Rxb8 {[%clk 00:00:26]} Nc4 {[%emt 00:00:06] [%clk
00:00:05]} 47. Nxc4 {[%emt 00:00:01] [%clk 00:00:27]} Bxc4 {[%clk 00:00:06]} 48.
Rxb6 {[%emt 00:00:02] [%clk 00:00:28]} Nc7 {[%emt 00:00:02] [%clk 00:00:06]} 49.
Bxc5+ {[%emt 00:00:02] [%clk 00:00:27]} Ke8 {[%clk 00:00:08]} 50. Rb7 {[%emt
00:00:04] [%clk 00:00:24]} Kd7 {[%clk 00:00:09]} 51. Bb6 {[%clk 00:00:25]} Kc6
{[%emt 00:00:01] [%clk 00:00:10]} 52. Rxc7+ {[%clk 00:00:26]} Kd5 {[%emt
00:00:04] [%clk 00:00:00]} 1-0

[Site "Europe Echecs"]

[Event "Championnat d'Europe de Blitz"]
[Date "2024.12.09"]
[White "Dvirnyy, Danyyil"]
[Black "Fressinet, Laurent"]
[WhiteElo "2491"]
[BlackElo "2588"]
[Round "12.9"]
[Result "0-1"]
[TimeControl "180+2"]

1. e4 {[%emt 00:00:03] [%clk 00:03:02]} e5 {[%emt 00:00:01] [%clk 00:03:03]} 2.
Nf3 {[%clk 00:03:02]} Nc6 {[%emt 00:00:02] [%clk 00:03:04]} 3. Bc4 {[%clk
00:03:03]} Nf6 {[%emt 00:00:02] [%clk 00:03:05]} 4. d3 {[%emt 00:00:03] [%clk
00:03:02]} Bc5 {[%emt 00:00:01] [%clk 00:03:06]} 5. a4 {[%emt 00:00:12] [%clk
00:02:53]} a6 {[%emt 00:00:10] [%clk 00:02:58]} 6. Nc3 {[%emt 00:00:03] [%clk
00:02:51]} d6 {[%emt 00:00:07] [%clk 00:02:53]} 7. Be3 {[%emt 00:00:01] [%clk
00:02:51]} Bxe3 {[%emt 00:00:10] [%clk 00:02:46]} 8. fxe3 {[%clk 00:02:52]} Be6
{[%emt 00:00:01] [%clk 00:02:47]} 9. b3 {[%emt 00:00:21] [%clk 00:02:33]} O-O
{[%emt 00:00:05] [%clk 00:02:44]} 10. Qe2 {[%emt 00:00:14] [%clk 00:02:20]} Nb4
{[%emt 00:00:06] [%clk 00:02:41]} 11. O-O {[%emt 00:00:10] [%clk 00:02:11]} Qe7
{[%emt 00:00:11] [%clk 00:02:32]} 12. h3 {[%emt 00:00:07] [%clk 00:02:07]} c6
{[%emt 00:00:03] [%clk 00:02:32]} 13. Bxe6 {[%emt 00:00:04] [%clk 00:02:04]}
fxe6 {[%clk 00:02:32]} 14. a5 {[%emt 00:00:35] [%clk 00:01:32]} c5 {[%emt
00:00:04] [%clk 00:02:30]} 15. Na4 {[%emt 00:00:26] [%clk 00:01:08]} Nd7 {[%emt
00:00:04] [%clk 00:02:26]} 16. c3 {[%emt 00:00:14] [%clk 00:00:58]} Nc6 {[%clk
00:02:27]} 17. Nb2 {[%emt 00:00:01] [%clk 00:00:59]} d5 {[%emt 00:00:04] [%clk
00:02:25]} 18. Kh2 {[%emt 00:00:14] [%clk 00:00:47]} Nf6 {[%emt 00:00:19] [%clk
00:02:07]} 19. Nd2 {[%emt 00:00:02] [%clk 00:00:47]} Rad8 {[%emt 00:00:14] [%clk
00:01:55]} 20. exd5 {[%emt 00:00:29] [%clk 00:00:21]} exd5 {[%emt 00:00:01]
[%clk 00:01:56]} 21. e4 {[%emt 00:00:04] [%clk 00:00:19]} d4 {[%emt 00:00:06]
[%clk 00:01:52]} 22. c4 {[%emt 00:00:04] [%clk 00:00:17]} Qc7 {[%emt 00:00:10]
[%clk 00:01:43]} 23. Nf3 {[%emt 00:00:02] [%clk 00:00:18]} Nxa5 {[%emt 00:00:08]
[%clk 00:01:37]} 24. Qe1 {[%emt 00:00:15] [%clk 00:00:05]} Nc6 {[%emt 00:00:04]
[%clk 00:01:34]} 25. Nd1 {[%emt 00:00:02] [%clk 00:00:06]} Nh5 {[%emt 00:00:14]
[%clk 00:01:22]} 26. Nf2 {[%emt 00:00:02] [%clk 00:00:06]} Nf4 {[%emt 00:00:12]
[%clk 00:01:12]} 27. Qd2 {[%emt 00:00:02] [%clk 00:00:07]} Nb4 {[%emt 00:00:05]
[%clk 00:01:08]} 28. g3 {[%emt 00:00:03] [%clk 00:00:06]} Ng6 {[%emt 00:00:11]
[%clk 00:00:59]} 29. Ng1 {[%emt 00:00:04] [%clk 00:00:04]} Rf7 {[%emt 00:00:07]
[%clk 00:00:55]} 30. Ng4 {[%emt 00:00:01] [%clk 00:00:04]} Rdf8 {[%emt 00:00:04]
[%clk 00:00:53]} 31. Rxf7 {[%emt 00:00:01] [%clk 00:00:05]} Qxf7 {[%emt
00:00:03] [%clk 00:00:52]} 32. Kg2 {[%clk 00:00:06]} h5 {[%emt 00:00:11] [%clk
00:00:43]} 33. Nf2 {[%emt 00:00:01] [%clk 00:00:07]} h4 {[%clk 00:00:45]} 34.
Ng4 {[%emt 00:00:06] [%clk 00:00:04]} hxg3 {[%emt 00:00:04] [%clk 00:00:42]} 35.
Kxg3 {[%clk 00:00:05]} Nf4 {[%emt 00:00:14] [%clk 00:00:31]} 36. Nf3 {[%emt
00:00:02] [%clk 00:00:04]} Nh5+ {[%clk 00:00:32]} 37. Kh4 {[%emt 00:00:01] [%clk
00:00:05]} Qxf3 {[%emt 00:00:03] [%clk 00:00:31]} 38. Kxh5 {[%emt 00:00:03]
[%clk 00:00:04]} Qxh3+ {[%emt 00:00:06] [%clk 00:00:27]} 39. Kg5 {[%emt
00:00:01] [%clk 00:00:05]} Rf4 {[%emt 00:00:02] [%clk 00:00:27]} 40. Rg1 {[%clk
00:00:06]} Rxg4+ {[%emt 00:00:02] [%clk 00:00:27]} 0-1

[Site "Europe Echecs"]

[Event "Championnat d'Europe de Blitz"]
[Date "2024.12.09"]
[White "Kuzubov, Yuriy"]
[Black "Pantsulaia, Levan"]
[WhiteElo "2595"]
[BlackElo "2522"]
[Round "12.10"]
[Result "0-1"]
[TimeControl "180+2"]

1. d4 {[%emt 00:00:03] [%clk 00:03:03]} c5 {[%clk 00:03:04]} 2. d5 {[%clk
00:03:03]} g6 {[%clk 00:03:05]} 3. e4 {[%emt 00:00:04] [%clk 00:03:02]} Bg7
{[%emt 00:00:01] [%clk 00:03:06]} 4. Nc3 {[%emt 00:00:03] [%clk 00:03:01]} d6
{[%emt 00:00:01] [%clk 00:03:07]} 5. Bb5+ {[%emt 00:00:06] [%clk 00:02:56]} Bd7
{[%emt 00:00:01] [%clk 00:03:08]} 6. a4 {[%emt 00:00:03] [%clk 00:02:55]} Bxb5
{[%emt 00:00:02] [%clk 00:03:09]} 7. axb5 {[%emt 00:00:02] [%clk 00:02:55]} Nf6
{[%clk 00:03:09]} 8. Nf3 {[%emt 00:00:04] [%clk 00:02:53]} O-O {[%emt 00:00:02]
[%clk 00:03:10]} 9. O-O {[%emt 00:00:01] [%clk 00:02:53]} Nbd7 {[%clk 00:03:11]}
10. Re1 {[%emt 00:00:24] [%clk 00:02:32]} Ne8 {[%clk 00:03:11]} 11. Bf4 {[%emt
00:00:11] [%clk 00:02:23]} Nc7 {[%emt 00:00:02] [%clk 00:03:12]} 12. Qd2 {[%emt
00:00:06] [%clk 00:02:18]} Nb6 {[%emt 00:00:01] [%clk 00:03:13]} 13. Bh6 {[%emt
00:00:06] [%clk 00:02:14]} Nc4 {[%emt 00:00:02] [%clk 00:03:13]} 14. Qc1 {[%emt
00:00:21] [%clk 00:01:55]} Bxh6 {[%emt 00:00:20] [%clk 00:02:55]} 15. Qxh6
{[%clk 00:01:56]} f6 {[%emt 00:00:01] [%clk 00:02:56]} 16. Nd2 {[%emt 00:00:06]
[%clk 00:01:52]} Ne5 {[%emt 00:00:04] [%clk 00:02:55]} 17. f4 {[%emt 00:00:06]
[%clk 00:01:47]} Nf7 {[%clk 00:02:56]} 18. Qh3 {[%emt 00:00:02] [%clk 00:01:47]}
Qe8 {[%emt 00:00:02] [%clk 00:02:57]} 19. Qd3 {[%emt 00:00:04] [%clk 00:01:44]}
Qd7 {[%clk 00:02:58]} 20. Ra5 {[%emt 00:00:05] [%clk 00:01:41]} a6 {[%emt
00:00:04] [%clk 00:02:56]} 21. b6 {[%emt 00:00:04] [%clk 00:01:39]} Ne8 {[%emt
00:00:12] [%clk 00:02:47]} 22. Raa1 {[%emt 00:00:01] [%clk 00:01:39]} Ng7 {[%emt
00:00:04] [%clk 00:02:46]} 23. Kh1 {[%emt 00:00:04] [%clk 00:01:36]} Rae8 {[%emt
00:00:19] [%clk 00:02:29]} 24. Nc4 {[%emt 00:00:05] [%clk 00:01:33]} Qg4 {[%emt
00:00:43] [%clk 00:01:48]} 25. Rf1 {[%emt 00:00:06] [%clk 00:01:29]} Nh5 {[%emt
00:00:07] [%clk 00:01:43]} 26. h3 {[%emt 00:00:35] [%clk 00:00:56]} Qh4 {[%emt
00:00:14] [%clk 00:01:32]} 27. Ne2 {[%emt 00:00:32] [%clk 00:00:26]} g5 {[%emt
00:00:27] [%clk 00:01:07]} 28. f5 {[%emt 00:00:01] [%clk 00:00:27]} g4 {[%emt
00:00:10] [%clk 00:00:59]} 29. Ra3 {[%emt 00:00:02] [%clk 00:00:26]} Ng5 {[%emt
00:00:06] [%clk 00:00:56]} 30. Nd2 {[%emt 00:00:10] [%clk 00:00:19]} gxh3 {[%emt
00:00:08] [%clk 00:00:49]} 31. gxh3 {[%emt 00:00:05] [%clk 00:00:15]} Kh8 {[%emt
00:00:09] [%clk 00:00:42]} 32. Qe3 {[%emt 00:00:02] [%clk 00:00:15]} Rg8 {[%emt
00:00:05] [%clk 00:00:39]} 33. Qf2 {[%emt 00:00:02] [%clk 00:00:16]} Qxf2 {[%emt
00:00:07] [%clk 00:00:34]} 34. Rxf2 {[%emt 00:00:02] [%clk 00:00:15]} Nf7 {[%emt
00:00:02] [%clk 00:00:34]} 35. Rg2 {[%emt 00:00:05] [%clk 00:00:13]} Ne5 {[%emt
00:00:01] [%clk 00:00:35]} 36. Kg1 {[%emt 00:00:04] [%clk 00:00:11]} Rg5 {[%emt
00:00:05] [%clk 00:00:31]} 37. h4 {[%emt 00:00:08] [%clk 00:00:06]} Rxg2+ {[%emt
00:00:02] [%clk 00:00:31]} 38. Kxg2 {[%clk 00:00:07]} Rg8+ {[%clk 00:00:32]} 39.
Kh3 {[%emt 00:00:05] [%clk 00:00:04]} Rg4 {[%emt 00:00:08] [%clk 00:00:26]} 40.
Re3 {[%emt 00:00:02] [%clk 00:00:04]} Nf4+ {[%emt 00:00:14] [%clk 00:00:14]} 41.
Nxf4 {[%emt 00:00:01] [%clk 00:00:05]} Rxf4 {[%clk 00:00:15]} 42. b3 {[%emt
00:00:02] [%clk 00:00:06]} Rf2 {[%emt 00:00:02] [%clk 00:00:15]} 43. Nc4 {[%emt
00:00:04] [%clk 00:00:03]} Nxc4 {[%emt 00:00:04] [%clk 00:00:14]} 44. bxc4
{[%clk 00:00:04]} Rxc2 {[%emt 00:00:02] [%clk 00:00:14]} 45. e5 {[%emt 00:00:02]
[%clk 00:00:04]} fxe5 {[%emt 00:00:03] [%clk 00:00:13]} 46. Re4 {[%emt 00:00:02]
[%clk 00:00:04]} Rd2 {[%emt 00:00:04] [%clk 00:00:11]} 47. Rg4 {[%emt 00:00:03]
[%clk 00:00:03]} Rd3+ {[%emt 00:00:03] [%clk 00:00:11]} 48. Kg2 {[%clk
00:00:04]} Rd4 {[%clk 00:00:12]} 49. Rg5 {[%emt 00:00:04] [%clk 00:00:00]} 0-1

[Site "Europe Echecs"]

[Event "Championnat d'Europe de Blitz"]
[Date "2024.12.09"]
[White "Fridman, Daniel"]
[Black "Larkin, Vladyslav"]
[WhiteElo "2571"]
[BlackElo "2449"]
[Round "12.11"]
[Result "1/2-1/2"]
[TimeControl "180+2"]

1. d4 {[%emt 00:00:01] [%clk 00:03:02]} Nf6 {[%emt 00:00:02] [%clk 00:03:03]} 2.
Nf3 {[%clk 00:03:03]} e6 {[%emt 00:00:02] [%clk 00:03:04]} 3. c4 {[%clk
00:03:03]} Bb4+ {[%emt 00:00:01] [%clk 00:03:05]} 4. Bd2 {[%emt 00:00:02] [%clk
00:03:04]} a5 {[%emt 00:00:01] [%clk 00:03:06]} 5. g3 {[%emt 00:00:01] [%clk
00:03:05]} b6 {[%emt 00:00:01] [%clk 00:03:07]} 6. Bg2 {[%emt 00:00:02] [%clk
00:03:05]} Bb7 {[%emt 00:00:01] [%clk 00:03:08]} 7. O-O {[%emt 00:00:02] [%clk
00:03:04]} O-O {[%emt 00:00:02] [%clk 00:03:08]} 8. Bg5 {[%clk 00:03:05]} Be7
{[%emt 00:00:01] [%clk 00:03:09]} 9. Bxf6 {[%emt 00:00:01] [%clk 00:03:06]} Bxf6
{[%emt 00:00:02] [%clk 00:03:10]} 10. Nc3 {[%clk 00:03:07]} d6 {[%emt 00:00:06]
[%clk 00:03:06]} 11. Qd3 {[%emt 00:00:01] [%clk 00:03:07]} g6 {[%emt 00:00:10]
[%clk 00:02:59]} 12. e4 {[%emt 00:00:01] [%clk 00:03:08]} e5 {[%emt 00:00:03]
[%clk 00:02:57]} 13. d5 {[%emt 00:00:02] [%clk 00:03:09]} Na6 {[%emt 00:00:03]
[%clk 00:02:56]} 14. b3 {[%emt 00:00:03] [%clk 00:03:07]} Bc8 {[%emt 00:00:02]
[%clk 00:02:57]} 15. h3 {[%emt 00:00:02] [%clk 00:03:07]} Bg7 {[%emt 00:00:02]
[%clk 00:02:57]} 16. a3 {[%emt 00:00:24] [%clk 00:02:44]} f5 {[%emt 00:00:04]
[%clk 00:02:56]} 17. Qe2 {[%emt 00:00:02] [%clk 00:02:44]} Nc5 {[%emt 00:00:06]
[%clk 00:02:52]} 18. Nd2 {[%emt 00:00:01] [%clk 00:02:44]} Bh6 {[%emt 00:00:15]
[%clk 00:02:40]} 19. Rab1 {[%emt 00:00:09] [%clk 00:02:37]} Bxd2 {[%emt
00:00:24] [%clk 00:02:18]} 20. Qxd2 {[%emt 00:00:01] [%clk 00:02:38]} Nxe4
{[%emt 00:00:05] [%clk 00:02:15]} 21. Nxe4 {[%emt 00:00:02] [%clk 00:02:37]}
fxe4 {[%emt 00:00:01] [%clk 00:02:16]} 22. Rbe1 {[%emt 00:00:05] [%clk
00:02:34]} Bf5 {[%emt 00:00:20] [%clk 00:01:58]} 23. g4 {[%emt 00:00:02] [%clk
00:02:34]} Bd7 {[%emt 00:00:01] [%clk 00:02:00]} 24. Rxe4 {[%emt 00:00:02] [%clk
00:02:34]} g5 {[%emt 00:00:01] [%clk 00:02:00]} 25. Re3 {[%emt 00:00:38] [%clk
00:01:58]} Rf4 {[%emt 00:00:16] [%clk 00:01:47]} 26. Be4 {[%emt 00:00:03] [%clk
00:01:57]} Qf6 {[%emt 00:00:03] [%clk 00:01:46]} 27. f3 {[%emt 00:00:01] [%clk
00:01:57]} Be8 {[%emt 00:00:03] [%clk 00:01:46]} 28. Qc2 {[%emt 00:00:08] [%clk
00:01:50]} Bg6 {[%emt 00:00:01] [%clk 00:01:47]} 29. Kg2 {[%emt 00:00:08] [%clk
00:01:45]} Kg7 {[%emt 00:00:05] [%clk 00:01:44]} 30. Rf2 {[%emt 00:00:27] [%clk
00:01:20]} Rf8 {[%emt 00:00:02] [%clk 00:01:44]} 31. Bxg6 {[%emt 00:00:03] [%clk
00:01:19]} Qxg6 {[%emt 00:00:05] [%clk 00:01:40]} 32. Qxg6+ {[%emt 00:00:06]
[%clk 00:01:14]} Kxg6 {[%emt 00:00:02] [%clk 00:01:41]} 33. Re4 {[%emt 00:00:13]
[%clk 00:01:03]} Rxe4 {[%emt 00:00:03] [%clk 00:01:41]} 34. fxe4 {[%clk
00:01:04]} Rf4 {[%emt 00:00:08] [%clk 00:01:35]} 1/2-1/2

[Site "Europe Echecs"]

[Event "Championnat d'Europe de Blitz"]
[Date "2024.12.09"]
[White "Paichadze, Luka"]
[Black "Quparadze, Giga"]
[WhiteElo "2532"]
[BlackElo "2537"]
[Round "12.12"]
[Result "0-1"]
[TimeControl "180+2"]

1. e4 {[%emt 00:00:01] [%clk 00:03:02]} c5 {[%emt 00:00:02] [%clk 00:03:03]} 2.
Nf3 {[%emt 00:00:05] [%clk 00:02:59]} e6 {[%emt 00:00:01] [%clk 00:03:04]} 3. c3
{[%emt 00:00:06] [%clk 00:02:55]} d5 {[%emt 00:00:03] [%clk 00:03:03]} 4. e5
{[%emt 00:00:09] [%clk 00:02:48]} d4 {[%emt 00:00:02] [%clk 00:03:03]} 5. Bd3
{[%emt 00:00:07] [%clk 00:02:42]} Bd7 {[%emt 00:00:02] [%clk 00:03:03]} 6. O-O
{[%emt 00:00:16] [%clk 00:02:28]} Bc6 {[%emt 00:00:01] [%clk 00:03:04]} 7. Re1
{[%emt 00:00:15] [%clk 00:02:16]} g5 {[%emt 00:00:12] [%clk 00:02:54]} 8. Kh1
{[%emt 00:00:23] [%clk 00:01:55]} h5 {[%emt 00:00:17] [%clk 00:02:38]} 9. Na3
{[%emt 00:00:42] [%clk 00:01:15]} g4 {[%emt 00:00:42] [%clk 00:01:58]} 10. Ng1
{[%emt 00:00:03] [%clk 00:01:15]} Ne7 {[%emt 00:00:01] [%clk 00:01:59]} 11. Be4
{[%emt 00:00:44] [%clk 00:00:32]} Bxe4 {[%emt 00:00:07] [%clk 00:01:53]} 12.
Rxe4 {[%emt 00:00:02] [%clk 00:00:33]} Nbc6 {[%emt 00:00:15] [%clk 00:01:39]}
13. Nc4 {[%emt 00:00:16] [%clk 00:00:19]} Ng6 {[%emt 00:00:05] [%clk 00:01:36]}
14. d3 {[%emt 00:00:13] [%clk 00:00:09]} b5 {[%emt 00:00:05] [%clk 00:01:33]}
15. Na3 {[%emt 00:00:06] [%clk 00:00:05]} a6 {[%emt 00:00:03] [%clk 00:01:31]}
16. Nc2 {[%emt 00:00:02] [%clk 00:00:05]} Bg7 {[%emt 00:00:02] [%clk 00:01:31]}
17. Qe2 {[%emt 00:00:04] [%clk 00:00:04]} Ngxe5 {[%emt 00:00:08] [%clk
00:01:25]} 18. Bf4 {[%emt 00:00:02] [%clk 00:00:04]} Ng6 {[%emt 00:00:06] [%clk
00:01:20]} 19. cxd4 {[%emt 00:00:03] [%clk 00:00:04]} O-O {[%emt 00:00:11] [%clk
00:01:11]} 20. dxc5 {[%emt 00:00:04] [%clk 00:00:00]} f5 {[%emt 00:00:01] [%clk
00:03:02]} 0-1

[Site "Europe Echecs"]